bitfinex/quotes_ETHUSD_20240709
["timestamp","ask_amount","ask_price","bid_price","bid_amount"]
[1720563961089,1.69791956,3061.2,3060.5,2.3504]
[1720563961403,1.69791956,3061.1,3060.9,1.073]
[1720563961914,1.69791956,3061.3,3060.9,1.073]
[1720563962219,3.0,3061.4,3060.9,1.073]
[1720563962515,1.69563421,3061.4,3060.9,1.073]
[1720563963402,1.69563421,3061.5,3060.9,1.073]
[1720563964289,4.69563421,3061.6,3060.9,1.073]
[1720563964513,0.55,3061.5,3060.9,1.073]
[1720563966413,0.55,3061.5,3060.7,1.073]
[1720563966615,2.24106027,3061.5,3060.7,1.073]
[1720563966814,0.57679703,3061.4,3060.7,1.073]
[1720563967042,0.55,3061.3,3060.7,1.073]
[1720563967222,3.0035,3061.3,3060.6,1.073]
[1720563967512,3.0,3061.2,3060.6,1.073]
[1720563967713,0.55,3061.1,3060.6,1.073]
[1720563983810,3.0,3061.2,3061.0,1.073]
[1720563984035,2.2908,3061.5,3060.8,3.5699]
[1720563984036,5.2908,3061.5,3060.8,3.5699]
[1720563984336,5.2908,3061.5,3060.8,1.073]
[1720563985036,0.55,3061.4,3060.8,1.073]
[1720563987442,2.4185,3061.3,3059.9,2.4976]
[1720563987643,0.55,3061.2,3060.6,1.073]
[1720563988618,3.0,3061.3,3060.8,1.073]
[1720563988818,3.0,3061.5,3060.9,1.073]
[1720563989031,0.55,3061.4,3060.9,1.073]
[1720563993776,7.46,3061.6,3061.3,3.3715]
[1720563993920,7.46,3062.1,3061.5,1.073]
[1720563994237,7.46,3062.1,3061.9,1.073]
[1720563994732,7.46,3062.1,3061.7,3.3715]
[1720563995655,7.46,3062.1,3061.7,1.073]
[1720563995859,8.206,3062.1,3061.7,1.073]
[1720563996239,7.46,3062.1,3061.7,1.073]
[1720563997257,7.46,3062.1,3061.4,2.2985]
[1720563997258,5.3085,3062.4,3061.4,2.2985]
[1720563997557,0.55,3062.3,3061.6,1.073]
[1720563997958,3.55,3062.3,3061.6,1.073]
[1720563998339,3.55,3062.3,3061.1,2.2735]
[1720563998526,3.55,3062.3,3061.5,1.073]
[1720564000353,3.55,3062.3,3061.1,2.2735]
[1720564000354,3.55,3062.3,3061.7,1.073]
[1720564001563,5.24444145,3062.3,3061.7,1.073]
[1720564002361,5.24596132,3062.3,3061.7,1.073]
[1720564002540,1.69596132,3062.2,3061.7,1.073]
[1720564002738,0.55,3062.1,3061.7,1.073]
[1720564003732,2.24769556,3062.1,3061.7,1.073]
[1720564005469,1.69769556,3062.0,3061.7,1.073]
[1720564005629,0.55,3061.9,3061.7,1.073]
[1720564006752,1.69864359,3062.0,3061.7,1.073]
[1720564006937,0.55,3061.9,3061.7,1.073]
[1720564008458,0.55,3061.9,3061.5,1.073]
[1720564008779,2.3057,3061.8,3061.1,2.3322]
[1720564009078,2.24864359,3061.9,3061.3,1.073]
[1720564009655,2.24864359,3061.9,3061.5,1.073]
[1720564009953,0.55,3061.9,3061.5,1.073]
[1720564010184,2.24831196,3061.9,3061.5,1.073]
[1720564013453,2.24814143,3061.9,3061.5,1.073]
[1720564016847,2.24849648,3061.9,3061.5,1.073]
[1720564017052,2.24849763,3061.9,3061.5,1.073]
[1720564018079,2.24849763,3061.9,3061.7,1.073]
[1720564018283,2.24849763,3061.9,3061.5,2.4331]
[1720564018483,2.24849763,3061.9,3061.7,1.073]
[1720564019282,1.69849763,3061.9,3061.7,1.073]
[1720564019480,3.0,3062.1,3061.7,1.073]
[1720564019481,4.69849763,3062.1,3061.7,1.073]
[1720564020392,4.69946777,3062.1,3061.7,1.073]
[1720564020770,3.0,3062.1,3061.7,1.073]
[1720564020972,4.69943893,3062.1,3061.7,1.073]
[1720564021167,1.69943893,3062.0,3061.7,1.073]
[1720564021491,1.69943893,3061.9,3061.7,1.073]
[1720564021665,1.69943893,3062.0,3061.7,1.073]
[1720564022261,1.69943893,3061.9,3061.7,1.073]
[1720564022880,1.69965931,3061.9,3061.7,1.073]
[1720564023093,1.69965931,3061.9,3061.7,1.42361]
[1720564025774,1.69965931,3061.9,3061.7,1.073]
[1720564025980,1.69965931,3061.8,3061.7,1.073]
[1720564026366,1.70052999,3061.8,3061.7,1.073]
[1720564028403,2.04063599,3062.0,3061.5,1.073]
[1720564028603,1.70125686,3061.7,3061.5,1.073]
[1720564029391,4.01735686,3061.7,3061.2,2.3216]
[1720564029583,1.70125686,3061.6,3061.1,0.23322]
[1720564029782,1.70125686,3061.6,3061.3,1.073]
[1720564029993,1.70125686,3061.6,3061.5,1.073]
[1720564030188,2.3161,3062.0,3061.5,1.073]
[1720564030189,1.70166036,3061.7,3061.5,1.073]
[1720564030369,1.70166036,3061.6,3061.5,1.073]
[1720564031909,2.04199243,3061.8,3061.5,1.073]
[1720564032109,0.68230117,3061.7,3061.5,1.073]
[1720564033379,2.72525022,3061.7,3061.5,1.073]
[1720564033631,7.46,3062.2,3061.2,1.073]
[1720564033632,5.31387524,3061.6,3061.2,1.073]
[1720564033777,1.70264683,3061.3,3061.2,1.073]
[1720564034373,1.70303153,3061.3,3061.2,1.073]
[1720564034622,2.04294905,3061.5,3061.2,1.073]
[1720564034833,0.68235176,3061.4,3061.2,1.073]
[1720564036432,0.682375,3061.4,3061.2,1.073]
[1720564037737,1.70402948,3061.3,3061.2,1.073]
[1720564038311,2.04433557,3061.5,3061.2,1.073]
[1720564038646,0.68238722,3061.4,3061.0,2.3216]
[1720564038792,1.70437512,3061.2,3061.0,2.55376]
[1720564039149,1.70437512,3061.2,3061.1,1.073]
[1720564039496,2.04433557,3061.4,3061.1,1.073]
[1720564039744,3.0,3061.7,3061.3,1.073]
[1720564039945,2.04582958,3061.4,3061.3,1.073]
[1720564040263,2.3161,3061.8,3061.3,1.073]
[1720564040433,2.0456214,3061.4,3061.3,1.073]
[1720564040635,2.72798466,3061.4,3061.3,1.073]
[1720564041055,2.72802361,3061.4,3061.3,1.073]
[1720564043285,2.72852508,3061.4,3061.3,1.073]
[1720564046237,0.68247983,3061.4,3061.3,1.073]
[1720564046701,0.68250316,3061.4,3061.3,1.073]
[1720564049479,2.04606007,3061.6,3061.3,3.351]
[1720564049641,1.70509855,3061.4,3061.3,2.278]
[1720564049846,1.70509855,3061.4,3061.3,3.351]
[1720564050174,1.70510287,3061.4,3061.3,3.351]
[1720564050359,10.27981388,3062.2,3061.3,3.351]
[1720564050360,1.70510287,3061.5,3061.4,2.278]
[1720564050567,1.70510287,3061.5,3061.4,3.351]
[1720564052381,1.70510287,3061.6,3061.5,2.278]
[1720564052681,1.70510287,3061.8,3061.6,3.26616]
[1720564052882,1.70510287,3062.0,3061.8,2.278]
[1720564053086,1.70510287,3062.1,3061.9,1.073]
[1720564053287,7.46,3062.7,3062.0,1.073]
[1720564053514,1.70547927,3062.2,3061.8,2.939715]
[1720564053647,1.70547927,3062.1,3061.8,2.939715]
[1720564053849,1.70547927,3062.1,3062.0,1.073]
[1720564055081,1.70547927,3062.2,3062.0,1.073]
[1720564055424,1.70547927,3062.2,3062.1,1.073]
[1720564055711,1.70547927,3062.2,3062.1,1.24235865]
[1720564056270,1.70547927,3062.3,3062.1,1.24235865]
[1720564056610,2.04467144,3062.6,3062.3,2.335]
[1720564056924,0.68254966,3062.5,3062.4,1.073]
[1720564057288,2.04467144,3062.7,3062.4,1.073]
[1720564057497,0.68258559,3062.6,3062.4,1.073]
[1720564058724,3.68258559,3062.6,3062.4,1.073]
[1720564058923,3.0,3062.6,3062.4,1.073]
[1720564059109,2.04467144,3062.7,3062.4,1.073]
[1720564059485,1.70297631,3062.5,3062.4,1.073]
[1720564059684,3.0,3062.6,3062.4,1.073]
[1720564059914,1.7029631,3062.5,3062.4,1.073]
[1720564060120,1.70296142,3062.5,3062.4,1.073]
[1720564060483,1.70265556,3062.5,3062.4,1.073]
[1720564061321,1.70248693,3062.5,3062.4,1.073]
[1720564062222,1.70248693,3062.6,3062.4,1.073]
[1720564062430,1.70248693,3062.6,3062.5,1.073]
[1720564062632,1.70248693,3062.7,3062.5,1.073]
[1720564062927,1.70241092,3062.7,3062.5,1.073]
[1720564063493,3.0,3062.9,3062.5,1.073]
[1720564063687,4.0241948,3062.6,3062.3,1.073]
[1720564063896,1.7023948,3062.5,3062.3,1.073]
[1720564065306,4.0241948,3062.6,3062.3,1.073]
[1720564067062,4.02373213,3062.6,3062.3,1.073]
[1720564068052,4.02373213,3062.6,3062.5,1.073]
[1720564068209,7.02373213,3062.6,3062.5,1.073]
[1720564068409,6.10917321,3062.6,3062.5,1.073]
[1720564068681,7.81085116,3062.6,3062.5,1.073]
[1720564070273,6.10917321,3062.6,3062.5,1.073]
[1720564070475,7.81106947,3062.6,3062.5,1.073]
[1720564070772,5.3218,3062.6,3062.5,1.073]
[1720564070984,1.7019072,3062.6,3062.5,1.073]
[1720564071280,1.7019072,3062.7,3062.5,1.073]
[1720564071476,3.55,3062.8,3062.5,1.073]
[1720564071477,0.55,3062.8,3062.5,1.073]
[1720564071635,0.55,3062.8,3062.4,2.4718]
[1720564071636,1.70177988,3062.7,3062.4,2.4718]
[1720564071836,1.70177988,3062.7,3062.6,1.073]
[1720564072469,1.70177988,3062.8,3062.6,1.073]
[1720564072669,4.70177988,3063.0,3062.6,1.073]
[1720564072879,1.70177988,3063.0,3062.8,1.073]
[1720564073258,3.0,3063.1,3062.8,1.073]
[1720564073259,1.70177988,3063.1,3062.8,1.073]
[1720564073635,1.70163094,3063.0,3062.8,1.073]
[1720564073865,3.0,3063.2,3062.8,1.073]
[1720564073866,1.70163094,3062.9,3062.8,1.073]
[1720564074182,0.52895,3063.1,3062.8,1.073]
[1720564074183,1.70163094,3063.0,3062.8,1.073]
[1720564074538,1.70163094,3062.9,3062.6,1.073]
[1720564076576,1.70163094,3062.8,3062.6,1.073]
[1720564076934,2.4161,3062.9,3062.6,1.073]
[1720564077176,1.70134638,3062.8,3062.6,1.073]
[1720564077853,2.11121055,3062.8,3062.6,1.073]
[1720564080139,1.70134638,3062.8,3062.6,1.073]
[1720564080372,1.70164451,3062.8,3062.6,1.073]
[1720564080667,4.11774451,3062.9,3062.6,1.073]
[1720564081066,1.70164451,3062.8,3062.6,1.073]
[1720564082369,4.11774451,3062.9,3062.6,1.073]
[1720564082969,4.11810908,3062.9,3062.6,1.073]
[1720564086170,2.4161,3062.9,3062.6,1.073]
[1720564086371,1.70249845,3062.9,3062.6,1.073]
[1720564086680,1.70249845,3062.8,3062.6,1.073]
[1720564088569,1.70249845,3062.7,3062.6,1.073]
[1720564089667,1.70358436,3062.7,3062.6,1.073]
[1720564090188,1.70357012,3062.7,3062.6,1.073]
[1720564090681,2.4107,3062.9,3062.6,1.073]
[1720564090682,4.45498415,3062.9,3062.6,1.073]
[1720564090876,5.20048256,3062.9,3062.6,1.073]
[1720564091172,1.70405375,3062.7,3062.6,1.073]
[1720564092181,4.45498415,3062.9,3062.6,1.073]
[1720564093188,5.04428415,3063.0,3062.8,1.073]
[1720564093477,0.68347741,3062.9,3062.8,1.073]
[1720564094243,2.72776156,3062.9,3062.8,1.073]
[1720564095241,0.68347741,3062.9,3062.8,1.073]
[1720564095446,3.68347741,3063.0,3062.8,1.073]
[1720564095646,0.68347741,3062.9,3062.8,1.073]
[1720564095875,2.04827887,3062.9,3062.8,1.073]
[1720564096044,2.73175628,3062.9,3062.8,1.073]
[1720564096245,0.68347741,3062.9,3062.8,1.073]
[1720564096444,0.68353238,3062.9,3062.8,1.073]
[1720564097052,3.69133238,3062.9,3062.3,2.3624]
[1720564097255,2.04886418,3062.6,3062.5,1.073]
[1720564097607,0.68353238,3062.6,3062.5,1.073]
[1720564097901,0.68353238,3062.7,3062.5,1.073]
[1720564098383,3.07393842,3062.7,3062.5,1.073]
[1720564098593,0.68353238,3062.6,3062.5,1.073]
[1720564099462,3.07393842,3062.7,3062.5,1.073]
[1720564099658,2.39040604,3062.7,3062.5,1.073]
[1720564099863,0.68357312,3062.6,3062.5,1.073]
[1720564100166,3.0078,3062.9,3062.5,1.073]
[1720564100376,3.62588975,3062.8,3062.5,1.073]
[1720564100664,2.94231376,3062.8,3062.7,1.073]
[1720564101063,3.62587179,3062.8,3062.7,1.073]
[1720564101273,1.23355803,3062.8,3062.7,1.073]
[1720564103291,1.23358439,3062.8,3062.7,1.073]
[1720564105963,0.68358439,3062.8,3062.7,1.073]
[1720564106207,0.68358439,3062.9,3062.7,1.42633]
[1720564106365,2.0511619,3062.8,3062.7,0.35333]
[1720564106564,2.0511619,3062.8,3062.7,1.42633]
[1720564106565,2.05102506,3062.8,3062.7,1.42633]
[1720564106797,2.73458859,3062.8,3062.7,1.42633]
[1720564107919,0.68356353,3062.8,3062.7,1.42633]
[1720564108087,0.68356353,3062.9,3062.7,1.073]
[1720564109581,3.0764261,3062.9,3062.7,1.073]
[1720564109912,2.39264189,3062.9,3062.7,1.073]
[1720564110116,0.68363996,3062.8,3062.7,1.073]
[1720564110776,0.68363996,3062.9,3062.7,1.073]
[1720564112213,1.02529351,3062.9,3062.7,1.073]
[1720564113292,0.34165355,3062.9,3062.7,1.073]
[1720564113482,1.02526137,3062.9,3062.7,1.073]
[1720564113680,4.02526137,3062.9,3062.7,1.073]
[1720564113991,0.68360782,3062.8,3062.7,1.073]
[1720564114380,2.05116074,3062.8,3062.7,3.3865]
[1720564114580,2.05116074,3062.8,3062.7,3.72515]
[1720564114581,2.73476856,3062.8,3062.7,3.72515]
[1720564115000,2.73476856,3062.8,3062.7,3.3865]
[1720564115803,0.68360782,3062.8,3062.7,3.3865]
[1720564116008,1.02526137,3062.9,3062.7,3.3865]
[1720564116313,2.05117662,3062.8,3062.7,3.3865]
[1720564116512,2.73478444,3062.8,3062.7,3.3865]
[1720564116710,2.05117662,3062.8,3062.7,3.3865]
[1720564116911,2.73480618,3062.8,3062.7,1.073]
[1720564117114,2.73489294,3062.8,3062.7,1.073]
[1720564117300,0.68362956,3062.8,3062.7,1.073]
[1720564117505,2.05127764,3062.8,3062.7,1.073]
[1720564117818,2.7349072,3062.8,3062.7,1.073]
[1720564118994,0.68362956,3062.8,3062.7,1.073]
[1720564119200,1.02528311,3062.9,3062.7,1.073]
[1720564120286,2.73479838,3062.9,3062.7,1.073]
[1720564120588,0.34165355,3062.9,3062.7,1.073]
[1720564120985,3.41842946,3062.9,3062.7,1.073]
[1720564121186,0.68363912,3062.8,3062.7,1.073]
[1720564121385,2.05125078,3062.8,3062.7,1.073]
[1720564121680,2.7348899,3062.8,3062.7,1.073]
[1720564123283,2.73485452,3062.8,3062.7,1.073]
[1720564123721,0.34165355,3062.9,3062.7,1.073]
[1720564124020,2.05122919,3062.8,3062.7,1.073]
[1720564124192,2.73485249,3062.8,3062.7,1.073]
[1720564127140,0.68361991,3062.8,3062.7,1.073]
[1720564127344,0.68361991,3062.8,3062.7,3.3538]
[1720564127519,0.34165355,3062.9,3062.7,3.68918]
[1720564128543,2.39283308,3062.9,3062.7,3.68918]
[1720564128849,2.39283308,3062.9,3062.7,3.3538]
[1720564129243,0.34165355,3062.9,3062.7,3.3538]
[1720564130025,2.39283308,3062.9,3062.7,3.3538]
[1720564130547,0.34165355,3062.9,3062.7,3.3538]
[1720564131253,2.39212677,3062.9,3062.7,3.3538]
[1720564131567,0.34165355,3062.9,3062.7,3.3538]
[1720564132340,2.39197884,3062.9,3062.7,3.3538]
[1720564132558,0.34165355,3062.9,3062.7,3.3538]
[1720564133137,0.34165355,3062.9,3062.0,5.64674]
[1720564133338,0.34165355,3062.9,3062.2,2.381]
[1720564133339,1.70845247,3062.6,3062.2,2.381]
[1720564133544,1.70845247,3062.5,3062.2,2.381]
[1720564133860,2.4564,3063.0,3062.4,1.073]
[1720564134040,2.4564,3063.0,3062.4,0.3454]
[1720564134041,1.70850607,3062.5,3062.4,0.3454]
[1720564134376,1.70850607,3062.5,3062.4,1.4184]
[1720564134562,2.05014227,3062.5,3062.4,1.4184]
[1720564137479,2.05026354,3062.5,3062.4,1.4184]
[1720564137875,0.3416362,3062.5,3062.4,1.4184]
[1720564138096,2.05021548,3062.5,3062.4,1.4184]
[1720564139290,2.05021548,3062.5,3062.4,1.073]
[1720564140550,0.3416362,3062.5,3062.4,1.073]
[1720564140891,2.04990733,3062.5,3062.4,1.073]
[1720564141389,2.04950015,3062.5,3062.4,1.073]
[1720564143391,2.04922788,3062.5,3062.4,1.073]
[1720564145396,2.04922788,3062.5,3062.4,1.4184]
[1720564146867,2.04920489,3062.5,3062.4,1.4184]
[1720564149871,0.3416362,3062.5,3062.4,1.4184]
[1720564150071,0.3416362,3062.5,3062.4,1.073]
[1720564152312,2.39084909,3062.5,3062.4,1.073]
[1720564152539,0.3416362,3062.5,3062.4,1.073]
[1720564152737,3.1733362,3062.5,3061.1,2.498]
[1720564152889,2.04861118,3061.7,3061.1,2.498]
[1720564153090,2.04861118,3061.4,3061.3,1.073]
[1720564153386,5.10494229,3061.9,3061.3,1.073]
[1720564153387,2.38964999,3061.5,3061.3,1.073]
[1720564153590,5.82277406,3061.8,3061.3,1.073]
[1720564153591,2.38652288,3061.4,3061.3,1.073]
[1720564154382,0.3417089,3061.4,3061.3,1.073]
[1720564155406,2.04327952,3061.4,3061.3,1.073]
[1720564156609,0.3417089,3061.4,3061.3,1.073]
[1720564161860,0.54572374,3061.4,3061.0,1.073]
[1720564162167,0.20401484,3061.4,3061.0,1.073]
[1720564162863,1.69843947,3061.6,3061.0,1.073]
[1720564163065,0.55,3061.5,3061.0,1.073]
[1720564163418,0.55,3061.6,3061.0,1.073]
[1720564163655,1.69693288,3061.7,3061.4,1.073]
[1720564163859,0.39786329,3061.7,3061.4,1.073]
[1720564164164,2.2817,3061.9,3061.4,1.073]
[1720564164165,3.0,3061.8,3061.4,1.073]
[1720564164667,5.2817,3061.9,3061.4,1.073]
[1720564165850,6.97863288,3061.9,3061.4,1.073]
[1720564166057,0.73203156,3061.8,3061.4,1.073]
[1720564166252,3.73203156,3061.8,3061.4,1.073]
[1720564172269,3.0,3061.8,3061.4,1.073]
[1720564172444,3.0,3061.8,3061.0,2.3928]
[1720564172445,0.34168271,3062.0,3061.6,1.073]
[1720564172640,0.55,3061.9,3061.6,1.073]
[1720564173465,0.34168271,3062.0,3061.0,2.3928]
[1720564173466,0.34168271,3062.0,3061.8,1.073]
[1720564173672,0.34168271,3062.0,3061.6,2.4551]
[1720564173981,0.34168271,3062.0,3061.7,0.35281]
[1720564176489,0.34168271,3062.0,3061.6,2.4551]
[1720564182205,1.69974252,3062.4,3061.6,2.4551]
[1720564183394,3.34166479,3062.5,3061.6,2.4551]
[1720564183572,1.70002698,3062.4,3061.6,2.4551]
[1720564183970,3.34166479,3062.5,3061.6,2.4551]
[1720564184304,3.34166479,3062.5,3061.7,0.35281]
[1720564184305,5.04195819,3062.5,3061.7,0.35281]
[1720564184472,1.7002934,3062.4,3061.7,0.35281]
[1720564185867,1.7002934,3062.4,3061.7,1.42581]
[1720564186069,5.04195819,3062.5,3061.7,1.42581]
[1720564186586,1.7002934,3062.4,3061.7,1.42581]
[1720564186911,5.04195819,3062.5,3061.7,1.42581]
[1720564187070,1.7002934,3062.4,3061.7,1.42581]
[1720564188297,3.34166479,3062.5,3061.7,1.42581]
[1720564188613,2.25117498,3062.4,3061.7,1.42581]
[1720564190901,2.2518334,3062.4,3061.7,1.42581]
[1720564191319,0.55,3062.4,3061.7,1.42581]
[1720564191485,2.25181886,3062.4,3061.7,1.42581]
[1720564191809,1.70181886,3062.3,3061.7,1.42581]
[1720564194307,1.70294517,3062.3,3061.7,1.42581]
[1720564194605,1.70294517,3062.3,3061.7,1.073]
[1720564195510,1.70294517,3062.2,3061.7,1.073]
[1720564197595,1.70294517,3062.1,3061.7,1.073]
[1720564197789,3.0,3062.3,3061.7,1.073]
[1720564198009,1.70451628,3062.2,3061.7,1.073]
[1720564198725,1.70451628,3062.1,3061.7,1.073]
[1720564199977,1.70451628,3062.2,3062.0,2.3619]
[1720564200421,1.70451628,3062.3,3062.0,2.3619]
[1720564200627,1.70451628,3062.4,3062.0,2.70539]
[1720564201098,1.70451628,3062.4,3062.3,1.073]
[1720564201416,1.70514397,3062.6,3062.3,1.073]
[1720564201629,1.70514397,3062.6,3062.3,1.41649]
[1720564201979,1.70514397,3062.7,3062.3,1.41649]
[1720564202183,1.70514397,3062.8,3062.3,1.073]
[1720564202417,2.04617277,3063.0,3062.3,1.073]
[1720564202418,1.70514397,3062.7,3062.3,1.073]
[1720564202622,1.70514397,3062.7,3062.1,3.4349]
[1720564202826,1.70514397,3062.5,3062.1,3.4349]
[1720564203286,1.70514397,3062.6,3062.1,3.4349]
[1720564203625,3.0,3063.0,3062.1,3.4349]
[1720564203780,1.70468161,3062.6,3062.1,3.4349]
[1720564203981,1.70468161,3062.6,3062.2,0.377839]
[1720564204289,1.70468161,3062.5,3062.1,2.3619]
[1720564204479,1.70468161,3062.5,3062.0,1.41649]
[1720564204480,1.70468161,3062.5,3062.0,1.073]
[1720564204686,1.70468161,3062.4,3062.0,1.073]
[1720564205725,1.70468161,3062.4,3061.8,1.073]
[1720564205897,2.4232,3062.6,3061.8,1.073]
[1720564205898,1.70468161,3062.3,3061.8,1.073]
[1720564206095,1.70468161,3062.2,3061.8,1.073]
[1720564206828,1.70468161,3062.2,3061.5,2.2919]
[1720564207036,1.70468161,3062.2,3061.8,1.073]
[1720564207037,1.7045892,3062.2,3061.8,1.073]
[1720564207492,2.4232,3062.6,3061.8,1.073]
[1720564207493,1.7045892,3062.3,3061.8,1.073]
[1720564207905,1.8665892,3062.3,3062.1,1.073]
[1720564208112,0.162,3062.3,3062.1,1.073]
[1720564208812,0.162,3062.3,3061.9,1.073]
[1720564209019,0.162,3062.3,3061.9,1.40966]
[1720564209742,1.8665892,3062.3,3061.9,1.40966]
[1720564209955,0.162,3062.3,3061.9,1.40966]
[1720564210253,0.162,3062.3,3061.7,2.2936]
[1720564210558,1.86726923,3062.3,3061.9,1.073]
[1720564210856,1.8672964,3062.3,3061.9,1.073]
[1720564211610,1.86747962,3062.3,3061.9,1.073]
[1720564211847,1.86747962,3062.3,3061.9,1.40966]
[1720564212445,1.70547962,3062.3,3061.9,1.40966]
[1720564213340,1.70547962,3062.3,3061.9,1.073]
[1720564213543,4.47437554,3062.5,3061.9,1.073]
[1720564213544,1.70547962,3062.2,3061.9,1.073]
[1720564213750,2.4278,3062.5,3061.9,1.073]
[1720564213919,1.70572146,3062.2,3061.9,1.073]
[1720564215344,1.70572146,3062.2,3061.9,1.40966]
[1720564217134,2.4278,3062.5,3061.9,1.40966]
[1720564217335,1.7065221,3062.2,3061.9,1.40966]
[1720564217830,1.7065221,3062.2,3062.1,1.073]
[1720564218033,1.7065221,3062.4,3062.2,2.4649]
[1720564218233,1.7065221,3062.4,3062.2,2.81869]
[1720564219158,1.7065221,3062.3,3062.1,1.073]
[1720564219441,1.7065221,3062.2,3062.1,1.073]
[1720564219633,2.3891,3062.6,3062.1,1.073]
[1720564219634,2.04782652,3062.4,3062.1,1.073]
[1720564219830,0.76028964,3062.3,3062.1,1.073]
[1720564220034,1.70731532,3062.2,3062.1,1.073]
[1720564220239,1.70731532,3062.3,3062.1,1.42679]
[1720564220673,1.70729938,3062.3,3062.1,1.42679]
[1720564221056,1.70730723,3062.3,3062.1,1.42679]
[1720564224177,1.70751067,3062.3,3062.1,1.42679]
[1720564227547,2.47,3062.8,3062.1,1.42679]
[1720564227752,1.70750892,3062.4,3062.1,1.073]
[1720564228606,1.70750892,3062.3,3062.1,1.073]
[1720564228892,1.70750892,3062.4,3062.1,1.073]
[1720564229097,1.70750892,3062.4,3062.1,1.42679]
[1720564229794,1.70750892,3062.3,3062.1,1.42679]
[1720564229979,1.70750892,3062.4,3062.2,2.4046]
[1720564230178,1.70750892,3062.5,3062.4,2.4046]
[1720564230383,1.70750892,3062.6,3062.4,3.4776]
[1720564230616,1.70750892,3062.6,3062.5,0.34776]
[1720564230935,7.46,3063.1,3062.5,0.34776]
[1720564231216,1.70744269,3062.6,3062.5,0.34776]
[1720564231397,2.2794,3063.3,3062.4,3.4776]
[1720564231599,1.70730123,3062.6,3062.4,3.4776]
[1720564234525,1.70684993,3062.7,3062.4,3.4776]
[1720564234702,1.70684993,3062.7,3062.6,1.073]
[1720564235507,1.70684993,3062.8,3062.6,1.073]
[1720564236501,2.04821992,3063.1,3062.6,1.073]
[1720564236502,1.70684993,3062.9,3062.6,1.073]
[1720564237586,1.70684993,3062.9,3062.6,1.747298]
[1720564237924,9.7394,3063.3,3062.6,1.747298]
[1720564238127,1.70635295,3062.9,3062.6,1.073]
[1720564239191,1.70635295,3062.8,3062.6,1.073]
[1720564240522,1.70635295,3062.8,3062.4,1.073]
[1720564241397,1.70614136,3062.8,3062.4,1.073]
[1720564241830,1.70612329,3062.8,3062.4,1.073]
[1720564242129,1.70612329,3062.8,3062.4,1.41474]
[1720564242995,1.70612329,3062.8,3062.6,1.073]
[1720564243192,1.70612329,3062.9,3062.6,1.073]
[1720564243591,2.4936,3063.1,3062.6,1.073]
[1720564243831,1.70610015,3062.9,3062.6,1.073]
[1720564244743,3.0,3063.2,3062.6,1.073]
[1720564244893,1.70608493,3062.9,3062.6,3.791413]
[1720564245094,1.70608493,3062.9,3062.8,1.073]
[1720564246736,1.70608493,3063.0,3062.8,1.073]
[1720564247342,1.70608493,3063.0,3062.8,1.4521413]
[1720564247908,1.70608493,3062.9,3062.8,1.4521413]
[1720564248221,1.70583952,3063.0,3062.8,1.4521413]
[1720564248410,1.70583952,3063.0,3062.8,1.073]
[1720564249519,1.70583952,3063.1,3062.8,1.073]
[1720564251803,1.70556033,3063.1,3062.8,1.073]
[1720564252028,2.4936,3063.5,3062.8,1.073]
[1720564252225,1.70559099,3063.1,3062.8,1.073]
[1720564252842,1.70561604,3063.1,3062.8,1.073]
[1720564253442,2.4936,3063.5,3062.8,1.073]
[1720564253649,1.70561346,3063.1,3062.8,1.073]
[1720564253817,1.70561346,3063.1,3062.8,1.4521413]
[1720564255047,2.4936,3063.5,3062.8,1.4521413]
[1720564255250,1.70562924,3063.1,3062.8,1.073]
[1720564258661,1.70577244,3063.2,3062.8,1.073]
[1720564260424,1.70577244,3063.1,3062.8,1.073]
[1720564261126,1.70585639,3063.1,3062.8,1.073]
[1720564261634,2.4936,3063.5,3062.8,1.073]
[1720564261833,1.7060845,3063.2,3063.0,1.073]
[1720564262157,1.7060845,3063.3,3063.0,1.073]
[1720564262374,1.70604591,3063.2,3062.8,1.4521413]
[1720564264461,1.70625963,3063.3,3062.8,1.4521413]
[1720564264657,1.70625963,3063.3,3062.9,2.3811]
[1720564264861,1.70625963,3063.3,3063.0,0.38332413]
[1720564265342,1.70625963,3063.3,3063.2,1.073]
[1720564265536,1.70625963,3063.4,3063.2,1.073]
[1720564267256,1.70625963,3063.5,3063.2,1.073]
[1720564267454,1.70625963,3063.5,3063.4,1.073]
[1720564267657,1.70667239,3063.5,3063.4,1.073]
[1720564268066,1.70667239,3063.6,3063.4,1.073]
[1720564268579,1.70667239,3063.6,3063.2,1.073]
[1720564268957,1.70667239,3063.6,3063.3,0.34136]
[1720564270850,2.0478152,3063.9,3063.3,0.34136]
[1720564271050,1.70651266,3063.6,3063.3,0.34136]
[1720564271474,1.70635814,3063.6,3063.3,0.34136]
[1720564274294,2.4587,3064.0,3063.3,0.34136]
[1720564274451,1.70657354,3063.6,3063.3,0.34136]
[1720564275482,1.70657354,3063.6,3063.4,1.073]
[1720564275662,1.70657354,3063.6,3063.3,0.34136]
[1720564276485,4.11487354,3063.6,3063.3,0.34136]
[1720564276701,1.70657354,3063.5,3063.2,1.073]
[1720564277589,2.4083,3063.6,3063.2,1.073]
[1720564277887,1.70666007,3063.5,3063.2,1.073]
[1720564278551,1.70668078,3063.5,3063.2,1.073]
[1720564278978,4.11498078,3063.6,3063.2,1.073]
[1720564279184,1.70668078,3063.6,3063.2,1.073]